{"text_format":"3","workbook":"xlsx","n_sheets":3,"sheets":["Sheet1","Sheet2","Sheet3"],"not_rendered":{"defined_names":1},"read":"whole","date_system":"1900"}

{"sheet":"Sheet1","index":0,"n_rows":492,"n_cols":10,"rows_kept":492,"merged":[[0,0,0,9],[1,0,2,0],[1,1,2,1],[1,2,2,2],[1,3,2,3],[1,4,2,4],[1,5,2,5],[1,6,1,9]]}
["遂溪县农村公厕升级改造项目备案表"]
["序号","镇","行政村","自然村","项目名称","建设内容","总投资（万元）"]
[{"$nulls":6},"总计","财政专项资金","自筹资金","其他"]
[1,"北坡镇","赵屋","丰劳村","丰劳村（赵屋小学旁）农村公厕升级改造","拆旧建新",7.278,7.278,0,0]
[2,"北坡镇","赵屋","丰劳村","丰劳村（牛棚旁）农村公厕升级改造","安装厕座4套；20米长60mm水管；厕所隔墙加高2平方米；厕所隔墙贴瓷砖18平方米；墙体喷漆46平方米；洗手盆2个；安装4个90*60cm掩门。",1.131,1.131,0,0]
[3,"北坡镇","北塘","东边村","东边村农村公厕升级改造","安装厕座10套；15米长管径160mm排污管；23米长60mm水管；厕所隔墙加高6平方米；厕所隔墙贴瓷砖45平方米；墙体喷漆160平方米；洗手盆2个；安装10个90*60cm掩门。",2.623,2.623,0,0]
[4,"北坡镇","北塘","草塘村","草塘村农村公厕升级改造","安装4个90*60cm掩门，墙体喷漆80平方米",0.918,0.918,0,0]
[5,"北坡镇","下黎","南洋村","南洋村农村公厕升级改造","安装厕座6套；12米长管径160mm排污管；200米长60mm水管；厕所隔墙加高3平方米；厕所隔墙贴瓷砖27平方米；墙体喷漆90平方米；洗手盆2个；安装6个90*60cm掩门，太阳能灯（100w）一套。",2.486,2.486,0,0]
[6,"北坡镇","水南","那梭尾村","那梭尾村农村公厕升级改造","安装厕座8套；11米长管径160mm排污管；22米长60mm水管；厕所隔墙加高4.5平方米；厕所隔墙贴瓷砖36平方米；墙体喷漆200平方米；洗手盆2个；安装8个90*60cm掩门。",2.985,2.985,0,0]
[7,"北坡镇","水南","瓦窑村","瓦窑村农村公厕升级改造","安装厕座4套；12米长管径160mm排污管；150米长60mm水管；厕所隔墙加高3平方米；厕所隔墙贴瓷砖18平方米；墙体喷漆50平方米；洗手盆2个；太阳能灯（100w）一套；安装4个90*60cm掩门。",1.615,1.615,0,0]
[8,"北坡镇","水南","积务村","积务村农村公厕升级改造","安装25米长60mm水管；厕所隔墙加高8.5平方米；厕所隔墙贴瓷砖45平方米；墙体喷漆150平方米；洗手盆2个；安装10个90*60cm掩门。",2.476,2.476,0,0]
[9,"北坡镇","文典","文典村","文典村农村公厕升级改造","安装2个90*60cm掩门",0.059,0.059,0,0]
[10,"北坡镇","文典","丰对村","丰对村农村公厕升级改造","安装厕座10套；16米长管径160mm排污管；25米长60mm水管；厕所隔墙加高4.8平方米；厕所隔墙贴瓷砖45平方米；墙体喷漆108平方米；洗手盆2个；安装10个90*60cm掩门。",2.2245,2.2245,0,0]
[11,"北坡镇","下担","塘母村","塘母村农村公厕升级改造","拆旧建新",7.278,7.278,0,0]
[12,"北坡镇","北坡","老圩","老圩(东街)农村公厕升级改造","安装厕座8套；15米长管径160mm排污管；22米长60mm水管；厕所隔墙加高5.5平方米；厕所隔墙贴瓷砖36平方米；墙体喷漆120平方米；洗手盆2个；安装8个90*60cm掩门。",2.379,2.379,0,0]
[13,"北坡镇","北坡","老圩","老圩(南街)农村公厕升级改造","安装厕座15套；17米长管径160mm排污管；28米长60mm水管；厕所隔墙加高4.5平方米；厕所隔墙贴瓷砖67.5平方米；墙体喷漆190平方米；洗手盆2个；安装15个90*60cm掩门。",3.2915,3.2915,0,0]
[14,"北坡镇","架岭","架罗村","架罗村（北边）农村公厕升级改造","增加电灯照明设施一套（60w）",0.064,0.064,0,0]
[15,"北坡镇","架岭","架罗村","架罗村（南边）农村公厕升级改造","增加电灯照明设施一套（60w）",0.064,0.064,0,0]
[16,"北坡镇","架岭","架罗湾村","架罗湾村农村公厕升级改造","增加电灯照明设施一套（60w）",0.064,0.064,0,0]
[17,"北坡镇","架岭","尖山嘴村","尖山嘴村农村公厕升级改造","增加电灯照明设施一套（60w）",0.064,0.064,0,0]
[18,"草潭镇","北拉村委会","姓杜村","姓杜村老旧农村公厕升级改造","旧墙装修，重修旧化粪池，安装照明灯、门、洗手盆、水管",5,5,0,0]
[19,"草潭镇","石杨村委会","迈坭村","迈坭村老旧农村公厕升级改造","旧墙装修，重修旧化粪池，安装照明灯、门、独立冲水器、洗手盆、水管",2,2,0,0]
[20,"草潭镇","石杨村委会","迈坭村","迈坭村老旧农村公厕升级改造","旧墙装修，安装照明灯、门、洗手盆、水管",2,2,0,0]
[21,"草潭镇","铺仔村委会","铺仔村","铺仔村老旧农村公厕升级改造","旧墙装修，安装照明灯、门、洗手盆、水管",2,2,0,0]
[22,"草潭镇","姓毛村委会","姓毛村","姓毛村老旧农村公厕升级改造","旧墙装修，安装照明灯、门、洗手盆、水管",2,2,0,0]
[23,"城月","扶良","扶良西村","扶良西村农村公厕升级改造","安装水管，安装电灯照明，安装10个门，墙加高到1.5米，改造蹲位器10个， ",2,2]
[24,"城月","扶良","坎塘村","坎塘村村东边农村公厕升级改造","安装水管，安装电灯照明，安装10个门，墙加高到1.5米，改造蹲位器10个， ",2,2]
[25,"城月","扶良","坎塘村","坎塘村村北边农村公厕升级改造","安装水管，安装电灯照明，安装10个门，墙加高到1.5米，改造蹲位器10个， ",2,2]
[26,"城月","扶良","三合上村","三合上村村北边农村公厕升级改造","安装水管，安装电灯照明，安装10个门，墙加高到1.5米，改造蹲位器10个， ",2,2]
[27,"城月","扶良","三合上村","三合上村村西边农村公厕升级改造","安装水管，安装电灯照明，安装10个门，墙加高到1.5米，改造蹲位器10个， ",2,2]
[28,"城月","扶良","三合下村","三合下村村北边农村公厕升级改造","安装水管，安装电灯照明，安装10个门，墙加高到1.5米，改造蹲位器10个， ",2,2]
[29,"城月","扶良","三合下村","三合下村村南边农村公厕升级改造","安装水管，安装电灯照明，安装10个门，墙加高到1.5米，改造蹲位器10个， ",2,2]
[30,"城月","扶良","强塘村","强塘村村南边农村公厕升级改造","安装水管，安装电灯照明，安装10个门，墙加高到1.5米，改造蹲位器10个， ",2,2]
[31,"城月","坑仔","和昌村","和昌村李姓农村公厕升级改造","安装6个门，墙加高到1.5米.",0.36,0.36]
[32,"城月","坑仔","和昌村","和昌村陈姓农村公厕升级改造","安装4个门，墙加高到1.5米，安装洗手盆2个。",0.44,0.44]
[33,"城月","坑仔","良田村","良田村农村公厕升级改造","安装水和加装水箱6个，安装6个门，墙加高到1.5米.",0.96,0.96]
[34,"城月","后溪","后溪村","后溪村环村路东边公厕升级改造","墙增加高到1.5米",0.12,0.12]
[35,"城月","后溪","后溪村","后溪村环村路东北边边公厕升级改造","墙增加高到1.5米",0.18,0.18]
[36,"城月","潭葛","大塘村","大塘村东边农村公厕升级改造","安装电灯照明2个，安装4个门，墙加高到1.5米",0.4,0.4]
[37,"城月","潭葛","大塘村","大塘村西边农村公厕升级改造","安装电灯照明2个，安装4个门，墙加高到1.5米",0.4,0.4]
[38,"城月","潭葛","排承村","排承村农村公厕升级改造","安装电灯照明2个，安装4个门，墙加高到1.5米",0.52,0.52]
[39,"城月","潭葛","垌仔一村","垌仔二村农村公厕升级改造","安装电灯照明2个，安装4个门，墙加高到1.5米",0.4,0.4]
[40,"城月","潭葛","垌仔二村","垌仔二村农村公厕升级改造","安装8个门，墙加高到1.5米",0.48,0.48]
[41,"城月","潭葛","高古塘村","高古塘村农村公厕升级改造","安装电灯照明2个，安装12个门，墙加高到1.5米，改造蹲位器12个",1.72,1.72]
[42,"城月","潭葛","彬读二村","彬读二村农村公厕升级改造","安装电灯照明2个",0.16,0.16]
[43,"城月","潭葛","潭葛村","潭葛村农村公厕升级改造","安装电灯照明2个",0.16,0.16]
[44,"城月","坡头","莫家","莫家村农村公厕升级改造","安装水管，安装电灯照明，安装6个门，墙加高到1.5米，改造蹲位器6个，改造三级化粪池4立方米等",1.94,1.94]
[45,"城月","坡头","符宅","符宅村农村公厕升级改造","安装6个门，墙加高到1.5米等",0.54,0.54]
[46,"城月","坡头","庞宅","庞宅村牛栏边农村公厕升级改造","安装电灯照明，安装8个门，墙加高到1.5米，改造蹲位器8个等",1.97,1.97]
[47,"城月","坡头","庞宅","庞宅村678线边农村公厕升级改造","安装电灯照明，安装6个门，墙加高到1.5米，改造蹲位器6个等",1.56,1.56]
[48,"城月","坡头","铺仔","铺仔村农村公厕升级改造","拆除旧的迁址新建",8,8]
[49,"城月","坡头","下村","下村村北边农村公厕升级改造","安装水管，安装电灯照明，安装4个门，墙加高到1.5米，改造蹲位器4个等",1.06,1.06]
[50,"城月","坡头","下村","下村村南边农村公厕升级改造","安装水管，安装电灯照明，安装4个门，墙加高到1.5米，改造蹲位器4个等",1.09,1.09]
[51,"城月","坡头","老村","老村农村公厕升级改造","安装水管，安装电灯照明，安装6个门，墙加高到1.5米，改造蹲位器6个等",1.49,1.49]
[52,"城月","坡头","贺嘉祉村","贺嘉祉村农村公厕升级改造","安装水管，安装电灯照明，安装6个门，墙加高到1.5米等",0.64,0.64]
[53,"城月","坡头","后村","后村农村公厕升级改造","安装电灯照明等",0.1,0.1]
[54,"城月","坡头","实荣村","实荣村农村公厕升级改造","安装水管水箱6个等",0.15,0.15]
[55,"城月","官田","中村","中村文化楼附近公厕","安装电灯照明",0.1,0.1]
[56,"城月","官田","中村","中村东部公厕","安装电灯照明，安装8个门，墙加高到1.5米",0.7,0.7]
[57,"城月","官田","后泼村","官田农贸市场附近公厕","安装电灯照明",0.1,0.1]
[58,"城月","官田","西边村","西边村南部公厕","安装电灯照明，安装8个门，墙加高到1.5米",0.7,0.7]
[59,"城月","吴村","吴村","吴村村山藤农村公厕升级改造","安装水管，安装电灯照明，安装6个门，墙加高到1.5米，安装水箱6个等",1.06,1.06]
[60,"城月","吴村","吴村","吴村村山藤农村公厕升级改造","安装水管，安装电灯照明，安装6个门，墙加高到1.5米，安装水箱6个等",1.36,1.36]
[61,"城月","吴村","吴村","吴村村土地庙前右侧农村公厕升级改造","安装水管，安装电灯照明，安装4个门，墙加高到1.5米，安装水箱4个等",0.96,0.96]
[62,"城月","吴村","吴村","吴村村吴村宾馆南边农村公厕升级改造","安装水管，安装电灯照明，安装6个门，墙加高到1.5米，安装水箱6个等",1.36,1.36]
[63,"城月","吴村","吴村","吴村村南边农村公厕升级改造","安装水管，安装电灯照明，安装6个门，墙加高到1.5米，安装水箱6个等",1.36,1.36]
[64,"城月","吴村","吴村","吴村村吴村小学门口东边农村公厕升级改造","安装水管，安装电灯照明，安装6个门，墙加高到1.5米，安装水箱6个等",1.36,1.36]
[65,"城月","平衡","和家东村","和家东村文化楼旁边农村公厕升级改造","安装水管，安装电灯照明，安装6个门，墙加高到1.5米，安装水箱6个等",1.14,1.14]
[66,"城月","平衡","和家东村","和家东村火雷庙前池塘右侧边农村公厕升级改造","安装水管，安装电灯照明，安装4个门，墙加高到1.5米，安装水箱4个等",0.9,0.9]
[67,"城月","平衡","和家东村","和家东村东边农村公厕升级改造","安装水管，安装电灯照明，安装6个门，墙加高到1.5米，安装水箱6个等",1.06,1.06]
[68,"城月","平衡","和家东村","和家东村南边农村公厕升级改造","安装水管，安装电灯照明，安装6个门，墙加高到1.5米，安装水箱6个等",1.1,1.1]
[69,"城月","平衡","南山村","南山村（祠堂旁边）农村公厕升级改造","安装电灯照明，安装4个门，墙加高到1.5米，改造蹲位器4个，改造三级化粪池12立方米等",1.98,1.98]
[70,"城月","平衡","南山村","南山村（村口养殖场旁边）农村公厕升级改造","安装电灯照明，安装4个门，墙加高到1.5米，改造蹲位器4个，改造三级化粪池12立方米等",1.48,1.48]
[71,"城月","平衡","洋坡村","洋坡村（村入口路边）农村公厕升级改造","安装电灯照明，安装6个门，墙加高到1.5米，安装水箱6个等",0.84,0.84]
[72,"城月","平衡","洪宅村","洪宅村（洪宅祠堂对面）农村公厕升级改造","安装电灯照明，安装6个门，墙加高到1.5米，安装水箱6个等",0.84,0.84]
[73,"城月","平衡","迈七村","迈七村（西边环村路旁边）农村公厕升级改造","安装电灯照明，安装4个门，墙加高到1.5米，安装水箱4个等",0.58,0.58]
[74,"城月","平衡","乾塘村","乾塘村（乾塘小学旁边）农村升级改造","安装电灯照明，安装5个门，隔墙加高到1.5米，改造蹲位器5个加水箱等",1.09,1.09]
[75,"城月","平衡","乾塘村","乾塘村（新村场往西）农村升级改造","安装电灯照明，安装5个门，隔墙加高到1.5米，改造蹲位器5个加水箱等",1.09,1.09]
[76,"城月","平衡","平衡村","平衡村（村卫生站旁边）农村公厕升级改造","安装水管加水箱，安装电灯照明，安装6个门，墙加高到1.5米等",0.84,0.84]
[77,"城月","平衡","平衡村","平衡村（村公园旁边）农村公厕升级改造","安装水管加水箱，安装电灯照明，安装6个门，墙加高到1.5米等",0.84,0.84]
[78,"城月","平衡","平衡村","平衡村（文化楼旁边）农村公厕升级改造","安装水管加水箱，安装电灯照明，安装8个门，墙加高到1.5米，改造蹲位器8个等",1.96,1.96]
[79,"城月","平衡","平衡村","平衡村（村水库旁边）农村公厕升级改造","安装水管加水箱，安装电灯照明，安装8个门，墙加高到1.5米等",0.96,0.96]
[80,"城月","平衡","平衡村","平衡村（村往西路旁边）农村公厕升级改造","安装水管加水箱，安装电灯照明，安装8个门，墙加高到1.5米等",0.96,0.96]
[81,"城月","平衡","和家西村","和家西村（村池塘旁边）农村公厕升级改造","安装水管加水箱，安装电灯照明，安装10个门，墙加高到1.5米，改造蹲位器10个等",2,2]
[82,"城月","平衡","和家西村","和家西村（村路口旁边)农村公厕升级改造","安装水管加水箱，安装电灯照明，安装10个门，墙加高到1.5米，改造蹲位器10个等",2,2]
[83,"城月","平衡","和家西村","和家西村（文化楼旁边）农村公厕升级改造","安装水管加水箱，安装电灯照明，安装8个门，墙加高到1.5米，改造蹲位器8个等",1.96,1.96]
[84,"城月","田头","田头","田头村公厕升级改造","安装16个门，墙加高到1.5米",1.6,1.6]
[85,"城月","田头","洪宅","洪宅村公厕升级改造","安装4个门，墙加高到1.5米",0.5,0.5]
[86,"城月","田头","周宅","周宅村公厕升级改造","安装8个门，墙加高到1.5米",1,1]
[87,"城月","田头","五里堂西村","五里堂东西村公厕升级改造","安装8个门，墙加高到1.5米",1,1]
[88,"城月","田头","下山村","下山村上公厕升级改造","安装个12门，墙加高到1.5米，改造蹲位器12个，刷墙",2.5,2.5]
[89,"城月","田头","下山村","下山村下公厕升级改造","安装个12门，墙加高到1.5米，改造蹲位器12个，刷墙",2.5,2.5]
[90,"城月","家寮村","家寮村","家寮村东边农村公厕升级改造","安装水管箱6个，安装6个门，墙加高到1.5米，改造蹲位器6个",1.8,1.8]
[91,"城月","家寮村","家寮村","家寮村北边农村公厕升级改造","安装水管箱6个，安装6个门，墙加高到1.5米，改造蹲位器6个",1.8,1.8]
[92,"城月","家寮村","家寮村","家寮村西边农村公厕升级改造","安装水管箱6个，安装6个门，墙加高到1.5米，改造蹲位器6个",1.8,1.8]
[93,"城月","家寮村","家寮村","家寮村南边农村公厕升级改造","安装水管箱6个，安装6个门，墙加高到1.5米，改造蹲位器6个",1.8,1.8]
[94,"城月","家寮村","仙塘村","仙塘村农村公厕升级改造","安装水管箱6个，安装6个门，墙加高到1.5米，改造蹲位器6个",1.8,1.8]
[95,"城月","家寮村","坡头仔中村","坡头仔中村农村公厕升级改造","安装水管箱6个，安装6个门，墙加高到1.5米，改造蹲位器6个",1.8,1.8]
[96,"城月","家寮村","坡头仔上村","坡头仔上村农村公厕升级改造","安装水管箱6个，安装6个门，墙加高到1.5米，改造蹲位器6个",1.8,1.8]
[97,"城月","家寮村","坡头仔南村","坡头仔南村北边农村公厕升级改造","安装水管箱6个，安装6个门，墙加高到1.5米，改造蹲位器6个",1.8,1.8]
[98,"城月","家寮村","坡头仔南村","坡头仔南村南边农村公厕升级改造","安装水管箱6个，安装6个门，墙加高到1.5米，改造蹲位器6个",1.8,1.8]
[99,"城月","家寮村","仁里湖村","仁里湖村农村公厕升级改造","安装水管箱6个，安装6个门，墙加高到1.5米，改造蹲位器6个",1.8,1.8]
[100,"城月","家寮村","谢宅村","谢宅村农村公厕升级改造","安装水管箱6个，安装6个门，墙加高到1.5米，改造蹲位器6个",1.8,1.8]
[101,"城月","仁里","内塘北村","内塘北村农村公厕升级改造","安装4个门，墙加高到1.5米，",0.29,0.29]
[102,"城月","仁里","内塘南村","内塘南村农村公厕升级改造","安装4个门，墙加高到1.5米，安装电灯照明",0.41,0.41]
[103,"城月","仁里","白银塘村","白银塘村农村公厕升级改造","安装4个门，墙加高到1.5米，安装电灯照明",0.41,0.41]
[104,"城月","仁里","文胜塘村","文胜塘村农村公厕升级改造","安装4个门，墙加高到1.5米，安装电灯照明",0.41,0.41]
[105,"城月","仁里","西坡塘村","西坡塘村农村公厕升级改造","安装4个门，墙加高到1.5米",0.29,0.29]
[106,"城月","仁里","边连村","边连村农村公厕升级改造","安装4个门，墙加高到1.5米",0.29,0.29]
[107,"城月","仁里","岭仔村","岭仔村农村公厕升级改造","安装4个门，墙加高到1.5米",0.29,0.29]
[108,"城月","仁里","文质东村","文质东村农村公厕升级改造","安装4个门，墙加高到1.5米，安装电灯照明",0.41,0.41]
[109,"城月","仁里","文质西村","文质西村农村公厕升级改造","安装4个门，墙加高到1.5米，安装电灯照明",0.41,0.41]
[110,"城月","仁里","毛家村","毛家村农村公厕升级改造","安装4个门，墙加高到1.5米",0.29,0.29]
[111,"城月","仁里","肖家东村","肖家东村农村公厕升级改造","安装4个门，墙加高到1.5米",0.29,0.29]
[112,"城月","仁里","肖家西村","肖家西村农村公厕升级改造","安装4个门，墙加高到1.5米",0.29,0.29]
[113,"城月","仁里","仁里下村","仁里下村南面农村旧公厕升级改造","安装12个门，墙加高到1.5米，改造蹲位器12个,美化外墙补漆",2,2]
[114,"城月","仁里","仁里下村","仁里下村东面农村公厕升级改造","安装4个门，墙加高到1.5米",0.29,0.29]
[115,"城月","仁里","仁里外村","仁里外村农村公厕升级改造","安装4个门，墙加高到1.5米",0.29,0.29]
[116,"城月","仁里","仁里中村","仁里中村农村公厕升级改造","安装4个门，墙加高到1.5米",0.29,0.29]
[117,"城月","仁里","仁里上村","仁里上村农村公厕升级改造","安装4个门，墙加高到1.5米",0.29,0.29]
[118,"城月","仁里","仙来村","仙来村北面农村公厕升级改造","安装4个门，墙加高到1.5米",0.29,0.29]
[119,"城月","仁里","仙来村","仙来村(仙来新村入口）农村公厕升级改造","安装4个门，墙加高到1.5米",0.29,0.29]
[120,"城月","仁里","仙来村","仙来村(仙来下村入口）农村公厕升级改造","安装4个门，墙加高到1.5米，安装电灯照明",0.41,0.41]
[121,"城月","仁里","仙来村","仙来村旧公厕祠堂左边农村公厕升级改造","安装6个门，墙加高到1.5米，美化外墙补漆",0.81,0.81]
[122,"城月","虎头坡","西坡村","西坡村中间文化楼旁边农村公厕升级改造","安装16个门，墙加高到1.5米，",1.26,1.26]
[123,"城月","虎头坡","西坡村","西坡村东北农村公厕升级改造","安装电灯照明2个，安装8个门，墙加高到1.5米，",0.92,0.92]
[124,"城月","虎头坡","西山仔村","西山仔村农村公厕升级改造","安装电灯照明2个，安装10个门，墙加高到1.5米，",1.1,1.1]
[125,"城月","虎头坡","坡湖仔村","坡湖仔村农村公厕升级改造","安装电灯照明2个，安装10个门，墙加高到1.5米，",0.98,0.98]
[126,"城月","虎头坡","洋仔村","洋仔村农村公厕升级改造","安装电灯照明2个，安装10个门，墙加高到1.5米，",0.98,0.98]
[127,"城月","虎头坡","黄宅村","黄宅村农村公厕升级改造","安装电灯照明2个，安装10个门，墙加高到1.5米，",1.1,1.1]
[128,"城月","虎头坡","韩宅村","韩宅村农村公厕升级改造","安装电灯照明2个，安装10个门，墙加高到1.5米，",0.98,0.98]
[129,"城月","虎头坡","周上村","周上村农村公厕升级改造","安装电灯照明2个，安装6个门，墙加高到1.5米，",0.74,0.74]
[130,"城月","虎头坡","周下村","周下村北边农村公厕升级改造","安装电灯照明2个，安装10个门，墙加高到1.5米，",1.1,1.1]
[131,"城月","虎头坡","周下村","周下村西南农村公厕升级改造","安装电灯照明2个，安装6个门，墙加高到1.5米，",0.74,0.74]
[132,"城月","虎头坡","唐宅村","唐宅村农村公厕升级改造","安装水管，安装电灯照明2个，安装10个门，墙加高到1.5米，",1.2,1.2]
[133,"城月","虎头坡","燕巢村","燕巢村农村公厕升级改造","安装电灯照明2个，安装10个门，墙加高到1.5米，",1.1,1.1]
[134,"城月","庄家村","庄家村","庄家村村前公厕升级改造","安装水管，安装电灯照明，安装8个门，墙加高到1.5米，改造蹲位器8个，改造三级化粪池6立方米等",2.46,2.46]
[135,"城月","庄家村","庄家村","庄家村村委会后边公厕升级改造","安装8个门，墙加高到1.5米",0.56,0.56]
[136,"城月","庄家村","庄家村","庄家村村东边公厕升级改造","安装8个门，墙加高到1.5米",0.56,0.56]
[137,"城月","邦机","邦机村","邦机村村前公厕升级改造","安装水管，安装电灯照明，安装6个门，墙加高到1.5米",0.5,0.5]
[138,"城月","邦机","洪家村","邦机子村前公厕升级改造","安装水管，安装电灯照明，安装6个门，墙加高到1.5米，改造蹲位冲水器6个",0.68,0.68]
[139,"城月","邦机","新居场村","新居场村前公厕升级改造","安装水管，安装电灯照明，安装6个门，墙加高到1.5米",0.5,0.5]
[140,"城月","邦机","后坑村","后孔村前公厕升级改造","安装水管，安装电灯照明，安装6个门，墙加高到1.5米，改造蹲位器6个",0.88,0.88]
[141,"城月","邦机","新屋村","新屋村村南公厕升级改造","安装水管，安装电灯照明，安装4个门，墙加高到1.5米，改造蹲位冲水器4个",0.58,0.58]
[142,"城月","邦机","坡尾村","坡尾村南公厕升级改造","安装水管，安装电灯照明，安装10个门，墙加高到1.5米，改造蹲位器10个，冲水器",1.38,1.38]
[143,"城月","邦机","坡尾村","坡尾村北公厕升级改造","安装水管，安装电灯照明，安装10个门，墙加高到1.5米，改造蹲位器10个，冲水器",1.38,1.38]
[144,"城月","邦机","调丰仔村","调丰仔村前公厕升级改造","安装水管，安装电灯照明，安装6个门，墙加高到1.5米",0.44,0.44]
[145,"城月","邦机","赞尾下","赞尾下村村前公厕升级改造","安装水管，安装电灯照明，安装8个门，墙加高到1.5米",0.61,0.61]
[146,"城月","石塘","邦家坛村","邦家坛村农村公厕升级改造","安装个6门，墙加高到1.5米",0.4,0.4]
[147,"城月","石塘","李家桥上村","李家桥上村公厕升级改造","拆除旧的迁址新建",8,8]
[148,"城月","石塘","李家桥下村","李家桥下村公厕升级改造","安装个6门，墙加高到1.5米",0.4,0.4]
[149,"城月","石塘","扬官塘村","扬官塘村公厕升级改造","安装个6门，墙加高到1.5米",0.4,0.4]
[150,"城月","石塘","班鱼塘村","班鱼塘村公厕升级改造","安装个6门，墙加高到1.5米",0.4,0.4]
[151,"城月","石塘","大湾村","大湾村公厕升级改造","安装个6门，墙加高到1.5米",0.4,0.4]
[152,"城月","石塘","草塘村","草塘村公厕升级改造","安装个6门，墙加高到1.5米",0.4,0.4]
[153,"城月","石塘","大塘口村","大塘口村公厕升级改造","安装个6门，墙加高到1.5米",0.4,0.4]
[154,"城月","石塘","草塘仔村","草塘仔村公厕升级改造","安装个6门，墙加高到1.5米",0.4,0.4]
[155,"城月","高明","延安","延安村农村公厕升级改造","安装水管，安装电灯照明，安装10个门，墙加高到1.5米，改造蹲位器10个",2,2]
[156,"城月","高明","朝栋","朝栋村农村公厕升级改造","安装门6个",0.8,0.8]
[157,"城月","高明","高明","高明村农村公厕升级改造","东边安装厕所门6个，厕所墙增高到1.5米，改造蹲位器6个",2,2]
[158,"城月","高明","高明","高明村农村公厕升级改造","西边安装厕所门6个，厕所墙增高到1.5米，改造蹲位器6个",2,2]
[159,"城月","高明","文宅","文宅村农村公厕新建","旧公厕拆除后，建设1座30平方米厕所",4,4]
[160,"城月","高明","山尾宝","山尾宝村农村公厕升级改造","安装门6个，厕所墙增高到1.5米",1.8,1.8]
[161,"城月","高明","郁宅村","郁宅村农村公厕升级改造","安装电灯照明，安装10个门，墙加高到1.5米，改造蹲位器10个",2,2]
[162,"城月","城月","上坡仔村","上坡仔村农村公厕升级改造","墙加高到1.5米6个，安装6个门",0.51,0.51]
[163,"城月","城月","下坡仔村","下坡仔村农村公厕升级改造","墙加高到1.5米6个，安装6个门",0.51,0.51]
[164,"港门","吴家","吴家","吴家村西南农村公厕升级改造","加装蹲位门、粉刷墙壁、蹲位隔墙加高、修缮窗柱",1.6,1.6,0]
[165,"港门","吴家","吴家","吴家村西北农村公厕升级改造","加装蹲位门、粉刷墙壁、蹲位隔墙加高",1.6,1.6,0]
[166,"港门","吴家","吴家","吴家村东南农村公厕升级改造","排沟厕所整改、加装蹲位门、粉刷墙壁、蹲位隔墙加高、修缮窗柱",3.9,3.9,0]
[167,"港门","吴家","吴家","吴家村东北农村公厕升级改造","排沟厕所整改、加装蹲位门、粉刷墙壁、蹲位隔墙加高、修缮窗柱、增加电灯照明设施",3.9,3.9,0]
[168,"港门","黄屋","黄屋","黄屋村旧村北农村公厕升级改造","加装蹲位门，加高蹲位墙，粉刷墙壁，增加电灯照明设施，改造三级化粪池",3,3,0]
[169,"港门","黄屋","黄屋","黄屋村旧村南农村公厕升级改造","加装蹲位门，加高蹲位墙，粉刷墙壁，增加电灯照明设施，改造三级化粪池",3,3,0]
[170,"港门","塘尾","塘二","塘二村农村公厕升级改造","加装蹲位门5扇、洗澡间门5扇，加高蹲位隔墙",1,1,0]
[171,"港门","港门埠","元塘仔","元塘仔村农村公厕升级改造","加高隔离墙，内外墙翻新，加装厕门，楼板做防水，加装水电，改厕所蹲位",2.5,2.5,0]
[172,"港门","货湖","牛角塘村","牛角塘村西南农村公厕升级改造","加装冲水水箱、蹲位隔墙加高、蹲位门改装、修缮窗柱、水电改装、四周散水坡加宽",2,2,0]
[173,"港门","货湖","牛角塘村","牛角塘村西北农村公厕升级改造","加装冲水水箱、蹲位隔墙加高、蹲位门改装、修缮窗柱、水电改装、四周散水坡加宽",2,2,0]
[174,"港门","货湖","梅录村","梅录村新村农村公厕升级改造","加装冲水水箱、蹲位隔墙加高、蹲位门改装、修缮窗柱、水电改装、四周散水坡加宽",2,2,0]
[175,"港门","货湖","梅录村","梅录村旧村农村公厕升级改造","加装冲水水箱、蹲位隔墙加高、蹲位门改装、修缮窗柱、水电改装、四周散水坡加宽",2,2,0]
[176,"港门","货湖","后苏村","后苏村东南农村公厕升级改造","加装冲水水箱、蹲位隔墙加高、蹲位门改装、修缮窗柱、水电改装、四周散水坡加宽",2,2,0]
[177,"港门","货湖","后苏村","后苏村西北农村公厕升级改造","加装冲水水箱、蹲位隔墙加高、蹲位门改装、修缮窗柱、水电改装、四周散水坡加宽",2,2,0]
[178,"港门","货湖","进丰村","进丰村东农村公厕升级改造","加装冲水水箱、蹲位隔墙加高、蹲位门改装、修缮窗柱、水电改装、四周散水坡加宽",2,2,0]
[179,"港门","货湖","进丰村","进丰村西农村公厕升级改造","加装冲水水箱、蹲位隔墙加高、蹲位门改装、修缮窗柱、水电改装、四周散水坡加宽",2,2,0]
[180,"港门","货湖","货湖圩村","货湖圩村南农村公厕升级改造","加装冲水水箱、蹲位隔墙加高、蹲位门改装、修缮窗柱、水电改装、四周散水坡加宽",2,2,0]
[181,"港门","货湖","货湖圩村","货湖圩村北农村公厕升级改造","加装冲水水箱、蹲位隔墙加高、蹲位门改装、修缮窗柱、水电改装、四周散水坡加宽",2,2,0]
[182,"河头","田西","水沟尾","水沟尾村公厕升级改造","加建蹲位门板，将排沟改为蹲位隔断，装有蹲便器,增加灯具照明通水等设施",1.9,1.9,0,0]
[183,"河头","田西","田东","田东村公厕升级改造","加建蹲位门板，将排沟改为蹲位隔断，装有蹲便器,增加灯具照明通水等设施",1.9,1.9,0,0]
[184,"河头","田西","朱宅","朱宅村公厕升级改造","加建蹲位门板，增加灯具照明通水、洗手盘等设施",1.9,1.9,0,0]
[185,"河头","新市","新市","新市村公厕升级改造","加建蹲位门板，将排沟改为蹲位隔断，装有蹲便器,增加灯具照明通水等设施",2,2,0,0]
[186,"河头","上坡","山口","山口村公厕升级改造","加建蹲位门板，将排沟改为蹲位隔断，装有蹲便器，增加灯具照明通水等设施",2,2,0,0]
[187,"河头","上坡","山口","山口村公厕升级改造","拆除旧公厕后重建",8.9,8.9,0,0]
[188,"河头","割山","桐仔园","桐仔园村公厕升级改造","加建蹲位门板，增加灯具照明通水、洗手盘等设施",2,2,0,0]
[189,"黄略","王爱","芦荻坑","芦荻坑村农村公厕升级改造","增加门和隔板等设施",{"$f":"H192+I192+J192","v":2},2,0,0]
[190,"黄略","王爱","小王","小王村农村公厕升级改造","增加门和隔板等设施",2,2,0,0]
[191,"黄略","王爱","小王","小王村农村公厕升级改造","增加门和隔板等设施",2,2,0,0]
[192,"黄略","王爱","界墙","界墙村农村公厕升级改造","增加门和隔板等设施",2,2,0,0]
[193,"黄略","王爱","蚕村仔","蚕村仔村农村公厕升级改造","增加门和隔板等设施",2,2,0,0]
[194,"黄略","王爱","凤岭","凤岭村农村公厕升级改造","增加门和隔板等设施",2,2,0,0]
[195,"黄略","塘口","庞村坎","庞村坎村农村公厕升级改造","增加门和隔板等设施",2,2,0,0]
[196,"黄略","塘口","庞村坎","庞村坎村农村公厕升级改造","增加门和隔板等设施",2,2,0,0]
[197,"黄略","塘口","官田隆","官田隆村农村公厕升级改造","增加门和隔板等设施",2,2,0,0]
[198,"黄略","塘口","新兴","新兴村农村公厕升级改造","增加门和隔板等设施",2,2,0,0]
[199,"黄略","塘口","西边","西边村农村公厕升级改造","增加门和隔板等设施",2,2,0,0]
[200,"黄略","塘口","西边","西边村农村公厕升级改造","增加门和隔板等设施",2,2,0,0]
[201,"黄略","塘口","潮安","潮安村农村公厕升级改造","增加门和隔板等设施",2,2,0,0]
[202,"黄略","塘口","塘东","塘东村农村公厕升级改造","增加门和隔板等设施",2,2,0,0]
[203,"黄略","塘口","塘西","塘西村农村公厕升级改造","增加门和隔板等设施",2,2,0,0]
[204,"黄略","坑尾","坑尾","坑尾村农村公厕升级改造","增加门和隔板等设施",2,2,0,0]
[205,"黄略","坑尾","麻蕾","麻蕾村农村公厕升级改造","增加门和隔板等设施",2,2,0,0]
[206,"黄略","坑尾","北峨","北峨村农村公厕升级改造","增加门和隔板等设施",2,2,0,0]
[207,"黄略","坑尾","北峨","北峨村农村公厕升级改造","增加门和隔板等设施",2,2,0,0]
[208,"黄略","坑尾","桥头","桥头村农村公厕升级改造","增加门和隔板等设施",2,2,0,0]
[209,"黄略","平石","谷庭","谷庭村农村公厕升级改造","增加门和隔板等设施",2,2,0,0]
[210,"黄略","平石","书房仔","书房仔村农村公厕升级改造","增加门和隔板等设施",2,2,0,0]
[211,"黄略","平石","书房仔","书房仔村农村公厕升级改造","增加门和隔板等设施",2,2,0,0]
[212,"黄略","平石","东边","东边村农村公厕升级改造","增加门和隔板等设施",2,2,0,0]
[213,"黄略","平石","东边","东边村农村公厕升级改造","增加门和隔板等设施",2,2,0,0]
[214,"黄略","平石","南坑","南坑村农村公厕升级改造","增加门和隔板等设施",2,2,0,0]
[215,"黄略","平石","南坑","南坑村农村公厕升级改造","增加门和隔板等设施",2,2,0,0]
[216,"黄略","殷屋","北边","北边村农村公厕升级改造","增加门和隔板等设施",2,2,0,0]
[217,"黄略","殷屋","南边","南边村农村公厕升级改造","增加门和隔板等设施",2,2,0,0]
[218,"黄略","殷屋","坡头","坡头村农村公厕升级改造","增加门和隔板等设施",2,2,0,0]
[219,"黄略","殷屋","下村","下村村农村公厕升级改造","增加门和隔板等设施",2,2,0,0]
[220,"黄略","殷屋","北青","北青村农村公厕升级改造","增加门和隔板等设施",2,2,0,0]
[221,"黄略","许屋","许屋","许屋村农村公厕升级改造","增加门和隔板等设施",2,2,0,0]
[222,"黄略","许屋","许屋","许屋村农村公厕升级改造","增加门和隔板等设施",2,2,0,0]
[223,"黄略","许屋","许屋","许屋村农村公厕升级改造","增加门和隔板等设施",2,2,0,0]
[224,"黄略","许屋","许屋","许屋村农村公厕升级改造","增加门和隔板等设施",2,2,0,0]
[225,"黄略","许屋","许屋","许屋村农村公厕升级改造","增加门和隔板等设施",2,2,0,0]
[226,"黄略","许屋","许屋","许屋村农村公厕升级改造","增加门和隔板等设施",2,2,0,0]
[227,"黄略","许屋","许屋","许屋村农村公厕升级改造","增加门和隔板等设施",2,2,0,0]
[228,"黄略","塘围","塘围","塘围村农村公厕升级改造","增加门和隔板等设施",2,2,0,0]
[229,"黄略","礼部","礼部","礼部村农村公厕升级改造","增加门和隔板等设施",2,2,0,0]
[230,"黄略","礼部","礼部","礼部村农村公厕升级改造","增加门和隔板等设施",2,2,0,0]
[231,"黄略","礼部","礼部","礼部村农村公厕升级改造","增加门和隔板等设施",2,2,0,0]
[232,"黄略","文车","头村","头村村农村公厕升级改造","增加门和隔板等设施",2,2,0,0]
[233,"黄略","文车","二村","二村村农村公厕升级改造","增加门和隔板等设施",2,2,0,0]
[234,"黄略","文车","后湾","后湾村农村公厕升级改造","增加门和隔板等设施",2,2,0,0]
[235,"黄略","文车","下一","下一村农村公厕升级改造","增加门和隔板等设施",2,2,0,0]
[236,"黄略","文车","下二","下二村农村公厕升级改造","增加门和隔板等设施",2,2,0,0]
[237,"黄略","九东","九东仔","九东仔村农村公厕升级改造","增加门和隔板等设施",2,2,0,0]
[238,"黄略","九东","九东","九东村农村公厕升级改造","增加门和隔板等设施",2,2,0,0]
[239,"黄略","九东","洋东","洋东村农村公厕升级改造","增加门和隔板等设施",2,2,0,0]
[240,"黄略","九东","河南","河南村农村公厕升级改造","增加门和隔板等设施",2,2,0,0]
[241,"黄略","九东","结豆坪","结豆坪村农村公厕升级改造","增加门和隔板等设施",2,2,0,0]
[242,"黄略","九东","沙沟","沙沟村农村公厕升级改造","增加门和隔板等设施",2,2,0,0]
[243,"黄略","南新","南新","南新村农村公厕升级改造","增加门和隔板等设施",2,2,0,0]
[244,"黄略","南新","南新","南新村农村公厕升级改造","增加门和隔板等设施",2,2,0,0]
[245,"黄略","南新","南新","南新村农村公厕升级改造","增加门和隔板等设施",2,2,0,0]
[246,"黄略","南新","竹松梅","竹松梅村农村公厕升级改造","增加门和隔板等设施",2,2,0,0]
[247,"黄略","北合","北合","北合村农村公厕升级改造","增加门和隔板等设施",2,2,0,0]
[248,"黄略","北合","永祥兴","永祥兴村农村公厕升级改造","增加门和隔板等设施",2,2,0,0]
[249,"黄略","北合","缸瓦洋","缸瓦洋村农村公厕升级改造","增加门和隔板等设施",2,2,0,0]
[250,"黄略","茅村","田头","田头村农村公厕升级改造","增加门和隔板等设施",2,2,0,0]
[251,"黄略","茅村","龙湾","龙湾村农村公厕升级改造","增加门和隔板等设施",2,2,0,0]
[252,"黄略","茅村","茅高","茅高村农村公厕升级改造","增加门和隔板等设施",2,2,0,0]
[253,"黄略","茅村","田头六","田头六村农村公厕升级改造","增加门和隔板等设施",{"$f":"H256+I256+J256","v":2},2,0,0]
[254,"黄略","颜村","肖南","肖南村农村公厕升级改造","增加门和隔板等设施",2,2,0,0]
[255,"黄略","颜村","肖北","肖北村农村公厕升级改造","增加门和隔板等设施",2,2,0,0]
[256,"黄略","颜村","月塘","月塘村农村公厕升级改造","增加门和隔板等设施",2,2,0,0]
[257,"黄略","颜村","肖基塘","肖基塘村农村公厕升级改造","增加门和隔板等设施",2,2,0,0]
[258,"黄略","颜村","坑尾塘","坑尾塘村农村公厕升级改造","增加门和隔板等设施",2,2,0,0]
[259,"黄略","颜村","颜四","颜四村农村公厕升级改造","增加门和隔板等设施",2,2,0,0]
[260,"黄略","深沟","东边塘","东边塘村农村公厕升级改造","增加门和隔板等设施",2,2,0,0]
[261,"黄略","深沟","白水塘","白水塘村农村公厕升级改造","增加门和隔板等设施",2,2,0,0]
[262,"黄略","深沟","白水塘","白水塘村农村公厕升级改造","增加门和隔板等设施",2,2,0,0]
[263,"黄略","深沟","东联","东联村农村公厕升级改造","增加门和隔板等设施",2,2,0,0]
[264,"黄略","深沟","新深沟","新深沟村农村公厕升级改造","增加门和隔板等设施",2,2,0,0]
[265,"黄略","深沟","新深沟","新深沟村农村公厕升级改造","增加门和隔板等设施",2,2,0,0]
[266,"黄略","深沟","老内","老内村农村公厕升级改造","增加门和隔板等设施",2,2,0,0]
[267,"黄略","深沟","钟屋","钟屋村农村公厕升级改造","增加门和隔板等设施",2,2,0,0]
[268,"黄略","深沟","周屋","周屋村农村公厕升级改造","增加门和隔板等设施",2,2,0,0]
[269,"黄略","深沟","坛一","坛一村农村公厕升级改造","增加门和隔板等设施",2,2,0,0]
[270,"黄略","深沟","坛外","坛外村农村公厕升级改造","增加门和隔板等设施",2,2,0,0]
[271,"黄略","深沟","湾仔","湾仔村农村公厕升级改造","增加门和隔板等设施",2,2,0,0]
[272,"黄略","深沟","坛二","坛二村农村公厕升级改造","增加门和隔板等设施",2,2,0,0]
[273,"黄略","新村","新村","新村村农村公厕升级改造","增加门和隔板等设施",2,2,0,0]
[274,"黄略","新村","新村","新村村农村公厕升级改造","增加门和隔板等设施",2,2,0,0]
[275,"黄略","新村","新村","新村村农村公厕升级改造","增加门和隔板等设施",2,2,0,0]
[276,"黄略","新村","新村","新村村农村公厕升级改造","增加门和隔板等设施",2,2,0,0]
[277,"黄略","新村","新村","新村村农村公厕升级改造","增加门和隔板等设施",2,2,0,0]
[278,"黄略","新村","潭河","潭河村农村公厕升级改造","增加门和隔板等设施",2,2,0,0]
[279,"黄略","新村","华封","华封村农村公厕升级改造","增加门和隔板等设施",2,2,0,0]
[280,"黄略","新村","华封","华封村农村公厕升级改造","增加门和隔板等设施",2,2,0,0]
[281,"黄略","新村","华封","华封村农村公厕升级改造","增加门和隔板等设施",2,2,0,0]
[282,"黄略","新村","华封","华封村农村公厕升级改造","增加门和隔板等设施",2,2,0,0]
[283,"黄略","新村","当铺","华封村农村公厕升级改造","增加门和隔板等设施",2,2,0,0]
[284,"黄略","南亭","外建","外建村农村公厕升级改造","增加门和隔板等设施",2,2,0,0]
[285,"黄略","南亭","外建","外建村农村公厕升级改造","增加门和隔板等设施",2,2,0,0]
[286,"黄略","冷水","冷水","冷水村农村公厕升级改造","增加门和隔板等设施",2,2,0,0]
[287,"黄略","冷水","平外","平外村农村公厕升级改造","增加门和隔板等设施",2,2,0,0]
[288,"黄略","冷水","新盛","新盛村农村公厕升级改造","增加门和隔板等设施",2,2,0,0]
[289,"黄略","台岭","台岭","台岭村农村公厕升级改造","增加门和隔板等设施",2,2,0,0]
[290,"黄略","加隆村","加隆","加隆村农村公厕升级改造","增加门和隔板等设施",2,2,0,0]
[291,"黄略","加隆村","加隆","加隆村农村公厕升级改造","增加门和隔板等设施",2,2,0,0]
[292,"黄略","加隆村","加隆","加隆村农村公厕升级改造","增加门和隔板等设施",2,2,0,0]
[293,"黄略","加隆村","加隆","加隆村农村公厕升级改造","增加门和隔板等设施",2,2,0,0]
[294,"黄略","加隆村","加隆","加隆村农村公厕升级改造","改造三级池，水电，隔墙，门，蹲坑，冲水器，排水沟，墙面翻新等",3,3,0,0]
[295,"黄略","叶屋","叶屋","叶屋村农村公厕升级改造","增加门和隔板等设施",2,2,0,0]
[296,"建新镇","白水塘","白水塘","白水塘村农村公厕升级改造","①人工拆除原厕所沟蹲位瓷砖；\n②安装水箱式厕所大便器、排水、排污管安装、贴地面瓷砖；\n③安装洗手盆\n④厕所安装隔断板门及内墙隔板",{"v":2.240707,"d":"2.2407"},{"v":2.240707,"d":"2.2407"},0]
[297,"建新镇","白水塘","白水塘","白水塘村农村公厕升级改造","①厕所安装隔断板门及内墙隔板；\n②安装洗手盆；\n③安装水管。",{"v":0.900721,"d":"0.9007"},{"v":0.900721,"d":"0.9007"},0]
[298,"建新镇","车路头","车路头","车路头村农村公厕升级改造","①人工拆除原厕所沟蹲位瓷砖、拆除围墙、拆除排污管等；②安装水箱式厕所大便器、排水管安装、贴地面瓷砖；③安装洗手盆④厕所安装隔断板门及内墙隔板",{"v":2.970721,"d":"2.9707"},{"v":2.970721,"d":"2.9707"},0]
[299,"建新镇","车路头","车路头","车路头村农村公厕升级改造","①人工拆除原厕所沟蹲位瓷砖、拆除围墙、拆除排污管等；②安装水箱式厕所大便器、排水管安装、贴地面瓷砖；③安装洗手盆④厕所安装隔断板门及内墙隔板",{"v":3.700721,"d":"3.7007"},{"v":3.700721,"d":"3.7007"},0]
[300,"建新镇","东村","东村","东村农村公厕升级改造","\n①厕所安装隔断板门及内墙隔板；\n②安装洗手盆；\n③安装水管。",{"v":1.315721,"d":"1.3157"},{"v":1.315721,"d":"1.3157"},0]
[301,"建新镇","东村","东村","东村农村公厕升级改造","①厕所安装隔断板门及内墙隔板；\n②安装洗手盆；\n③安装水管。",{"v":1.315721,"d":"1.3157"},{"v":1.315721,"d":"1.3157"},0]
[302,"建新镇","东村","东村","东村农村公厕升级改造","①厕所安装隔断板门及内墙隔板；\n②安装洗手盆；\n③安装水管。",{"v":0.900721,"d":"0.9007"},{"v":0.900721,"d":"0.9007"},0]
[303,"建新镇","东村","东村","东村农村公厕升级改造","①厕所安装隔断板门及内墙隔板；\n②安装洗手盆；\n③安装水管。",{"v":0.900721,"d":"0.9007"},{"v":0.900721,"d":"0.9007"},0]
[304,"建新镇","渡头","渡头","渡头村农村公厕升级改造","①厕所安装隔断板门及内墙隔板；\n②安装洗手盆；\n③安装给水管，整改水电",{"v":1.900721,"d":"1.9007"},{"v":1.900721,"d":"1.9007"},0]
[305,"建新镇","加埠","加埠","加埠村农村公厕升级改造","①厕所安装隔断板门及内墙隔板；\n②安装洗手盆；\n③安装给水管。",{"v":0.943621,"d":"0.9436"},{"v":0.943621,"d":"0.9436"},0]
[306,"建新镇","加埠","加埠","加埠村农村公厕升级改造","①厕所安装隔断板门及内墙隔板；\n②安装洗手盆；\n③安装给水管。",{"v":0.943621,"d":"0.9436"},{"v":0.943621,"d":"0.9436"},0]
[307,"建新镇","南村","南村","南村农村公厕升级改造","①厕所安装隔断板门及内墙隔板；\n②安装洗手盆；\n③安装给水管。",{"v":0.929321,"d":"0.9293"},{"v":0.929321,"d":"0.9293"},0]
[308,"建新镇","南村","南村","南村农村公厕升级改造","①厕所安装隔断板门及内墙隔板；\n②安装洗手盆；\n③安装给水管。",{"v":0.929321,"d":"0.9293"},{"v":0.929321,"d":"0.9293"},0]
[309,"建新镇","西洋","西洋","西洋村农村公厕升级改造","①厕所安装隔断板门及内墙隔板；\n②安装洗手盆；\n③安装给水管。",{"v":1.672121,"d":"1.6721"},{"v":1.672121,"d":"1.6721"},0]
[310,"建新镇","坡湖","坡湖","坡湖村农村公厕升级改造","①厕所安装隔断板门及内墙隔板；\n②安装洗手盆；\n③安装给水管；\n④人工开挖排水沟及埋管安装。\n⑤厕所室外地台硬底化。整改水电。",{"v":2.958021,"d":"2.9580"},{"v":2.958021,"d":"2.9580"},0]
[311,"建新镇","坡湖","坡湖","坡湖村农村公厕升级改造","拆除旧公厕后重建",{"v":5.120721,"d":"5.1207"},{"v":5.120721,"d":"5.1207"},0]
[312,"建新镇","坡塘","坡塘","坡塘村农村公厕升级改造","①厕所安装隔断板门及内墙隔板；\n②安装洗手盆；\n③安装给水管；",{"v":0.995721,"d":"0.9957"},{"v":0.995721,"d":"0.9957"},0]
[313,"建新镇","坡塘","坡塘","坡塘村农村公厕升级改造","①厕所安装隔断板门及内墙隔板；\n②安装洗手盆；\n③安装给水管；",{"v":0.995721,"d":"0.9957"},{"v":0.995721,"d":"0.9957"},0]
[314,"建新镇","三合棚","三合棚","三合棚村农村公厕升级改造","①厕所安装隔断板门及内墙隔板；\n②安装洗手盆；\n③安装给水管；\n④内墙刷乳胶漆",{"v":1.888221,"d":"1.8882"},{"v":1.888221,"d":"1.8882"},0]
[315,"建新镇","苏二","苏二","苏二村农村公厕升级改造","①厕所安装隔断板门及内墙隔板；\n②安装洗手盆；\n③安装给水管；",{"v":1.562521,"d":"1.5625"},{"v":1.562521,"d":"1.5625"},0]
[316,"建新镇","苏二","苏二","苏二村农村公厕升级改造","①厕所安装隔断板门及内墙隔板；\n②安装洗手盆；\n③安装给水管；",{"v":1.562521,"d":"1.5625"},{"v":1.562521,"d":"1.5625"},0]
[317,"建新镇","潭九","潭九","潭九村农村公厕升级改造","①厕所安装隔断板门及内墙隔板；\n②安装洗手盆；\n③安装给水管；\n④内墙刷乳胶漆",{"v":1.686821,"d":"1.6868"},{"v":1.686821,"d":"1.6868"},0]
[318,"建新镇","万山","万山","万山村农村公厕升级改造","①厕所安装隔断板门及内墙隔板；\n②安装洗手盆；\n③安装给水管；",{"v":0.893621,"d":"0.8936"},{"v":0.893621,"d":"0.8936"},0]
[319,"建新镇","万山","万山","万山村农村公厕升级改造","①厕所安装隔断板门及内墙隔板；\n②安装洗手盆；\n③安装给水管；",{"v":0.893621,"d":"0.8936"},{"v":0.893621,"d":"0.8936"},0]
[320,"建新镇","西村","西村","西村农村公厕升级改造","①厕所安装隔断板门及内墙隔板；\n②安装洗手盆；\n③安装给水管；",{"v":0.900721,"d":"0.9007"},{"v":0.900721,"d":"0.9007"},0]
[321,"建新镇","溪北","溪北","溪北村农村公厕升级改造","①厕所安装隔断板门及内墙隔板；\n②安装洗手盆；\n③安装给水管；",{"v":1.234021,"d":"1.2340"},{"v":1.234021,"d":"1.2340"},0]
[322,"建新镇","溪北","溪北","溪北村农村公厕升级改造","①厕所安装隔断板门及内墙隔板；\n②安装洗手盆；\n③安装给水管；",{"v":1.234021,"d":"1.2340"},{"v":1.234021,"d":"1.2340"},0]
[323,"建新镇","溪北","溪北","溪北村农村公厕升级改造","①人工拆除原厕所沟蹲位瓷砖；\n②安装厕所大便器、排水、排污管安装、贴地面瓷砖；\n③安装洗手盆\n④厕所安装隔断板门及内墙隔板，整改水电",{"v":2.449021,"d":"2.4490"},{"v":2.449021,"d":"2.4490"},0]
[324,"建新镇","溪伯路","溪伯路","溪伯路村农村公厕升级改造","①人工拆除原厕所沟蹲位瓷砖；\n②安装厕所大便器、排水、排污管安装、贴地面瓷砖；\n③安装洗手盆\n④厕所安装隔断板门及内墙隔板",{"v":3.043621,"d":"3.0436"},{"v":3.043621,"d":"3.0436"},0]
[325,"建新镇","仙岸","仙岸","仙岸村农村公厕升级改造","①人工拆除原厕所沟蹲位瓷砖；\n②安装厕所大便器、排水、排污管安装、贴地面瓷砖；\n③安装洗手盆\n④厕所安装隔断板门及内墙隔板",{"v":2.720921,"d":"2.7209"},{"v":2.720921,"d":"2.7209"},0]
[326,"建新镇","仙岸","仙岸","仙岸村农村公厕升级改造","①厕所安装隔断板门及内墙隔板；\n②安装洗手盆；\n③安装给水管；",{"v":0.900721,"d":"0.9007"},{"v":0.900721,"d":"0.9007"},0]
[327,"建新镇","早田","早田","早田村农村公厕升级改造","①厕所安装隔断板门及内墙隔板；\n②安装洗手盆；\n③安装给水管；",{"v":0.975221,"d":"0.9752"},{"v":0.975221,"d":"0.9752"},0]
[328,"建新镇","早田","早田","早田村农村公厕升级改造","①厕所安装隔断板门及内墙隔板；\n②安装洗手盆；\n③安装给水管；",{"v":0.975221,"d":"0.9752"},{"v":0.975221,"d":"0.9752"},0]
[329,"建新镇","中村","中村","中村农村公厕升级改造","①厕所安装隔断板门及内墙隔板；\n②安装洗手盆；\n③安装给水管；",{"v":0.900721,"d":"0.9007"},{"v":0.900721,"d":"0.9007"},0]
[330,"建新镇","黄宅","黄宅","黄宅村农村公厕升级改造","(1)、厕所安装隔板门及内墙加高\n(2)丶整改水电",0.855,0.855,0]
[331,"建新镇","黄宅","黄宅","黄宅村农村公厕升级改造","拆除旧公厕后重建",5,5,0]
[332,"建新镇","上流","上流","上流村农村公厕升级改造","厕所安装隔板门及内墙加高、整改水电",1,1,0]
[333,"建新镇","土札","方园新村场","方园村农村公厕升级改造","①人工拆除原厕所沟蹲位瓷砖；\n②安装厕所大便器、排水、排污管安装、贴地面瓷砖③每个内墙增高至1.5米，并贴瓷砖。\n④厕所安装隔断板门及内墙隔板",1.5216,1.5216,0]
[334,"建新镇","土札","方园旧村场","方园村农村公厕升级改造","①厕所安装隔断板门\n②安装给水管。",1.612,1.612,0]
[335,"建新镇","土札","石园旧村场","石园村农村公厕升级改造","①厕所安装隔断板门\n②安装给水管。",1.612,1.612,0]
[336,"建新镇","土札","石园新村场","石园村农村公厕升级改造","①安装厕所大便器排水、排污管安装、贴地面瓷砖②每个内墙增高至1.5米，并贴瓷砖\n③安装洗手盆\n④厕所安装隔断板门",1.5,1.5,0]
[337,"建新镇","土札","奄前旧村场","奄前村农村公厕升级改造","①人工拆除原厕所沟蹲位瓷砖；\n②安装厕所大便器、排水、排污管安装、贴地面瓷砖\n③每个内墙增高至1.5米，并贴瓷砖。\n④厕所安装隔断板门",1.5216,1.5216,0]
[338,"建新镇","土札","西边村海田边","西边村农村公厕升级改造","①人工拆除原厕所沟蹲位瓷砖；\n②安装厕所大便器、排水、排污管安装、贴地面瓷砖\n③每个内墙增高至1.5米，并贴瓷砖。\n④厕所安装隔断板门及内墙隔板",1.5216,1.5216,0]
[339,"建新镇","土札","地灵村","地灵村农村公厕升级改造","①重新平地建造\n②重新建造蹲位并贴瓷砖；\n③安装厕所大便器、排水、排污管安装、贴地面瓷砖\n④每个蹲位内墙建高至1.5米，并贴瓷砖。\n⑤厕所安装隔断板门",7.02,7.02,0]
[340,"建新镇","陈宅","陈宅","陈宅村农村公厕升级改造","①厕所安装门，\n②红砖隔墙\n③粘瓷砖\n④安装给水管，整改水电",1.38,1.38,0]
[341,"建新镇","后坑","后坑","后坑村农村公厕升级改造","拆除旧公厕后重建",7,7,0]
[342,"建新镇","下园尾","下园尾","下园尾村农村公厕升级改造","拆除旧公厕后重建",7,7,0]
[343,"江洪镇","昌洋村委会","南边洋村","南边洋村农村公厕升级改造","加高蹲位隔墙、加装厕所门等",3,3,0,0]
[344,"界炮","界炮","内角","内角村老旧农村公厕升级改造","安装蹲位独立门、增高隔墙",2.06,1.8,0.26]
[345,"界炮","金围","金围","金围村老旧农村公厕升级改造（村东边）","安装蹲位独立门、增高隔墙",2.06,1.8,0.26]
[346,"界炮","金围","金围","金围村老旧农村公厕升级改造（村西边）","安装蹲位独立门、增高隔墙",2.06,1.8,0.26]
[347,"界炮","金围","洋高","洋高村老旧农村公厕升级改造","安装蹲位独立门、增高隔墙",2.06,1.8,0.26]
[348,"界炮","金围","留坭","留坭村老旧农村公厕升级改造","安装蹲位独立门、增高隔墙",7.74,5.61,2.13]
[349,"界炮","南山","上办山","上办山村老旧农村公厕升级改造","增高隔墙",1,0.72,0.28]
[350,"界炮","雷公","则仔塘","则仔塘村老旧农村公厕升级改造","排沟式改造、安装蹲位独立门、增高隔墙",2.06,1.8,0.26]
[351,"界炮","芒溪","铺仔","铺仔村老旧农村公厕升级改造","改造厕所门",1,0.72,0.28]
[352,"界炮","西湾","西湾","西湾村东边老旧农村公厕升级改造","排沟式改造、安装蹲位独立门、增高隔墙",5.94,4.31,1.63]
[353,"界炮","西湾","西湾","西湾村西边老旧农村公厕升级改造","排沟式改造、安装蹲位独立门、增高隔墙",5.94,4.31,1.63]
[354,"界炮","龙塘","大塘","大塘村老旧农村公厕升级改造","安装蹲位独立门、增高隔墙",3.4,2.47,0.93]
[355,"界炮","龙塘","铺仔","铺仔村老旧农村公厕升级改造","安装蹲位独立门、增高隔墙",1,0.72,0.28]
[356,"界炮","龙塘","新南昌","新南昌村老旧农村公厕升级改造","排沟式改造、安装蹲位独立门",4.74,3.44,1.3]
[357,"界炮","同文","同文","同文村老旧农村公厕升级改造","排沟式改造、安装蹲位独立门、增高隔墙",2.06,1.49,0.57]
[358,"界炮","海田","山塘一二","山塘村一队老旧农村公厕升级改造","排沟式改造、安装蹲位独立门、增高隔墙",4.74,3.44,1.3]
[359,"界炮","海田","山塘三四五","山塘村三四五队老旧农村公厕升级改造","安装蹲位独立门、增高隔墙、安装洗手盆和水龙头",1.2,1.2,0]
[360,"界炮","海田","山塘八九","山塘村九队老旧农村公厕升级改造","安装蹲位独立门、增高隔墙、安装洗手盆和水龙头",2.95,2.14,0.81]
[361,"界炮","海田","山塘八九","山塘村八队老旧农村公厕升级改造","排沟式改造、安装蹲位独立门、增高隔墙",4.74,3.44,1.3]
[362,"界炮","箔寮","后塘仔","后塘仔村老旧农村公厕升级改造","排沟式改造、安装蹲位独立门、增高隔墙",4.9,3.55,1.35]
[363,"界炮","箔寮","云上","云上村老旧农村公厕升级改造","排沟式改造、增高隔墙",1.37,0.99,0.38]
[364,"界炮","北潭坡","山口仔","山口仔村老旧农村公厕升级改造（文化楼旁）","排沟式改造、安装蹲位独立门、增高隔墙、化粪池改造",5.94,4.31,1.63]
[365,"界炮","北潭坡","山口仔","山口仔村老旧农村公厕升级改造（大山口路边）","排沟式改造、安装蹲位独立门、增高隔墙、化粪池改造",5.94,4.31,1.63]
[366,"界炮","北潭坡","北潭坡","北潭坡村老旧农村公厕升级改造（村委会旁）","安装蹲位独立门、增高隔墙",3.63,2.63,1]
[367,"界炮","北潭坡","北潭坡","北潭坡村老旧农村公厕升级改造（文化楼旁）","安装蹲位独立门、增高隔墙",2.5,1.81,0.69]
[368,"界炮","北潭坡","横仓","横仓村老旧农村公厕升级改造1","排沟式改造、安装蹲位独立门、增高隔墙",2.5,1.81,0.69]
[369,"界炮","北潭坡","横仓","横仓村老旧农村公厕升级改造2","排沟式改造、安装蹲位独立门、增高隔墙",2.5,1.81,0.69]
[370,"界炮","合沟","合沟","合沟村老旧农村公厕升级改造（小学旁）","排沟式改造、安装蹲位独立门、增高隔墙",1.4,1.4,0]
[371,"界炮","合沟","合沟","合沟村老旧农村公厕升级改造（文化楼）","安装蹲位独立门、增高隔墙",3.4,2.47,0.93]
[372,"界炮","合沟","宏甫","宏甫村老旧农村公厕升级改造","排沟式改造、安装蹲位独立门、增高隔墙",1.4,1.4,0]
[373,"界炮","合沟","百世田","百世田村老旧农村公厕升级改造","安装蹲位独立门、增高隔墙",3.63,2.63,1]
[374,"界炮","北潭","北潭","北潭村老旧农村公厕升级改造","三级化粪池改造、安装蹲位独立门、增高隔墙",1.73,1.25,0.48]
[375,"界炮","北潭","岭仔","岭仔村老旧农村公厕升级改造","安装蹲位独立门、增高隔墙",1.55,1.12,0.43]
[376,"界炮","坦塘","上坦塘","上坦塘村老旧农村公厕升级改造","安装蹲位独立门、增高隔墙",1.55,1.12,0.43]
[377,"界炮","坦塘","下坦塘","下坦塘村老旧农村公厕升级改造","安装蹲位独立门、增高隔墙",1.55,1.12,0.43]
[378,"界炮","坦塘","姓方","姓方村老旧农村公厕升级改造","安装蹲位独立门、增高隔墙",1.55,1.12,0.43]
[379,"界炮","坦塘","岸村","岸村老旧农村公厕升级改造","安装蹲位独立门、增高隔墙",1.55,1.12,0.43]
[380,"界炮","坦塘","上大岭坑","上大岭坑村老旧农村公厕升级改造","安装蹲位独立门、增高隔墙",1.55,1.12,0.43]
[381,"界炮","坦塘","下大岭坑","下大岭坑村老旧农村公厕升级改造","安装蹲位独立门、增高隔墙",1.55,1.12,0.43]
[382,"界炮","赤伦","下草","下草村老旧农村公厕升级改造","安装蹲位独立门、增高隔墙",1.73,1.25,0.48]
[383,"界炮","安塘","上安塘","上安塘村老旧农村公厕升级改造","排沟式改造、安装蹲位独立门、增高隔墙",5.94,4.31,1.63]
[384,"界炮","安塘","上斗伦","上斗伦村老旧农村公厕升级改造（村西边）","安装蹲位独立门、增高隔墙",2.06,1.8,0.26]
[385,"界炮","安塘","上斗伦","上斗伦村老旧农村公厕升级改造（村东边）","安装蹲位独立门、增高隔墙",2.06,1.8,0.26]
[386,"界炮","安塘","金邦","金邦村老旧农村公厕升级改造","安装蹲位独立门、增高隔墙",2.06,1.8,0.26]
[387,"界炮","安塘","东边塘","东边塘村老旧农村公厕升级改造","安装蹲位独立门、增高隔墙",2.06,1.8,0.26]
[388,"乐民","墩文","英楼","英楼村农村公厕升级改造","新建厕屋、瓷砖、隔板、厕门、厕具、蹲坑、三格化粪池4立方米，增加电灯照明和水管设施等",5,5,0]
[389,"乐民","松树","松树","松树村农村公厕升级改造","改造水、电、蹲便器设施，清理化粪池等",2,2,0]
[390,"乐民","松树","松树","松树村农村公厕升级改造","改造水、电、蹲便器设施，清理化粪池等",2,2,0]
[391,"乐民","松树","松树","松树村农村公厕升级改造","改造水、电、蹲便器设施，清理化粪池等",2,2,0]
[392,"乐民","海山","海山","海山村农村公厕升级改造","新建三格化粪池30立方米，增加供水、电灯照明设施、厕坑隔门",3,3,0]
[393,"乐民","海山","海山","海山村农村公厕升级改造","新建三格化粪池30立方米，增加供水、电灯照明设施、厕坑隔门",3,3,0]
[394,"乐民","海山","海山","海山村农村公厕升级改造","新建三格化粪池30立方米，增加供水、电灯照明设施、厕坑隔门",3,3,0]
[395,"乐民","海山","芋头","芋头村农村公厕升级改造","新建三格化粪池30立方米，增加供水、电灯照明设施、厕坑隔门",3,3,0]
[396,"乐民","陈铁","曲水","曲水村农村公厕升级改造","增加夹板、门、瓷盆排污管道、水管，电灯照明设施",2,2,0]
[397,"乐民","盐灶","盐灶东","盐灶东村农村公厕升级改造","三格化粪池30立方，增加水电，增加两幅门，增加屋顶、瓷砖",3,3,0]
[398,"岭北镇","横山村委会","横山村","横山村老旧农村公厕升级改造","1.拆旧隔墙,重新建隔墙,加高2.安装6个蹲便器、门、2个洗手盆、水管",2.3,2.3,0,0]
[399,"岭北镇","横山村委会","望高村","望高村老旧农村公厕升级改造","1.拆旧隔墙,重新建隔墙,加高2.安装6个蹲便器、门、2个洗手盆、水管",2.3,2.3,0,0]
[400,"岭北镇","横山村委会","田体村 ","田体村老旧农村公厕升级改造","1.拆旧隔墙,重新建隔墙,加高2.安装6个蹲便器、门、2个洗手盆、水管",2.3,2.3,0,0]
[401,"岭北镇","西塘村委会","东塘下村","东塘下村老旧农村公厕升级改造","新建6个独立蹲位，安装6个独立门、小便器、独立冲水器等",2.3,2.3,0,0]
[402,"岭北镇","西塘村委会","西塘村","西塘村老旧农村公厕升级改造","新建6个独立蹲位，安装6个独立门、小便器、独立冲水器等",2.3,2.3,0,0]
[403,"岭北镇","西塘村委会","边村","边村老旧农村公厕升级改造","新建6个独立蹲位，安装6个独立门、小便器、独立冲水器等",2.3,2.3,0,0]
[404,"岭北镇","西塘村委会","东塘上村","东塘上村老旧农村公厕升级改造","新建6个独立蹲位，安装6个独立门、小便器、独立冲水器等",2.3,2.3,0,0]
[405,"岭北镇","西塘村委会","肖简村","肖简村老旧农村公厕升级改造","新建6个独立蹲位，安装6个独立门、小便器、独立冲水器等",2.3,2.3,0,0]
[406,"岭北镇","西塘村委会","罗门塘村","罗门塘村老旧农村公厕升级改造","新建6个独立蹲位，安装6个独立门、小便器、独立冲水器等",2.3,2.3,0,0]
[407,"岭北镇","西塘村委会","下洋村","下洋村老旧农村公厕升级改造","新建6个独立蹲位，安装6个独立门、小便器、独立冲水器等",2.3,2.3,0,0]
[408,"遂城","火车站","铸梨","铸梨村农村公厕升级改造","重新安装5个厕盘，隔墙加高至1.5米，加装5个厕门，安装洗手盘，每个厕位安装水龙头，内外墙批荡",{"$f":"H411+I411","v":2.5},2.5,0]
[409,"遂城","附城","南柳","南柳村农村公厕升级改造","重新安装6个厕盘，隔墙加高至1.5米，加装6个厕门，加装洗手盘，每个厕位安装冲水阀",2,2,0]
[410,"遂城","榄罗","榄罗","榄罗村农村公厕升级改造","新建一格化粪池（原只有两格），重新安装8个厕盘，隔墙加高至1.5米，加装8个厕门，加装洗手盘，每个厕位安装水龙头",2.1,2.1,0]
[411,"遂城","蒲岭","蒲岭","蒲岭村农村公厕升级改造","新改建8个厕盘，隔墙加高至1.5米，加装8个厕门，加装洗手盘，每个厕位安装水龙头，刷1面粉墙，加2盏太阳能灯",2,2,0]
[412,"遂城","蒲岭","老赵","老赵村农村公厕升级改造","新改建8个厕盘，隔墙加高至1.5米，加装8个厕门，加装洗手盘，每个厕位安装水龙头",2,2,0]
[413,"遂城","沙坡","邹屋","邹屋村农村公厕升级改造","改造化粪池，隔墙加高至1.5米，加装5个厕门，安装洗手盆，每个厕位安装冲水器，外墙批荡刷白，内墙刷白",2.2,2.2,0]
[414,"遂城","沙坭","沙坭岭","沙坭岭村农村公厕升级改造","重做8个厕盘，隔墙加高至1.5米，加装8个厕门，安装洗手盆，改造进水管，每个厕位安装水龙头，化粪池连接排污管网",2.4,2.4,0]
[415,"遂城","陈村","后坑","后坑村农村公厕升级改造","新建一格化粪池（原只有两格），重新安装8个厕盘，隔墙加高至1.5米，加装8个厕门，加装洗手盘，每个厕位安装水龙头",2.2,2.2,0]
[416,"遂城","陈村","陈村","陈村村农村公厕升级改造","新建一格化粪池（原只有两格），重新安装8个厕盘，隔墙加高至1.5米，加装8个厕门，加装洗手盘，每个厕位安装水龙头",2.2,2.2,0]
[417,"遂城","陈村","兰边","兰边村农村公厕升级改造","新建两格化粪池（原只有一格），外墙刷白，重新安装6个厕盘，隔墙加高至1.5米，加装6个厕门，加装洗手盘，每个厕位安装水龙头",2.2,2.2,0]
[418,"遂城","白水","打古氹","打古氹村农村公厕升级改造","重新安装12个厕盘，隔墙加高至1.5米，加装12个厕门，加装洗手盘，每个厕位安装冲水阀",2.5,2.5,0]
[419,"遂城","白水","马六良","新建村农村公厕升级改造","重新安装6个厕盘，隔墙加高至1.5米，加装6个厕门，加装洗手盘，每个厕位安装水龙头",2.3,2,0.3]
[420,"遂城","边岭","陆村","陆村村农村公厕升级改造","重新建三级化粪池，三面外墙批荡，一面墙粉刷，安装洗手盆，装电",1.2,1.2,0]
[421,"遂城","边岭","牛路头","牛路头村农村公厕升级改造","新建两格化粪池（原只有一格），重做6个厕盘，隔墙从0.5米加高至1.5米，加装6个厕门，安装洗手盘，每个厕位安装水龙头,内墙刷白",2.5,2.5,0]
[422,"遂城","大岭","大岭二","大岭二村农村公厕升级改造","新建两格化粪池（原只有一格），隔墙加高至1.5米，厕所门安装8个，安装洗手盘",2.3,2.3,0]
[423,"遂城","大岭","昌梓","昌梓村（祠堂北侧）农村公厕升级改造","新建两格化粪池（原只有一格），重做8个厕盘，隔墙加高至1.5米，加装8个厕门，装洗手盆，化粪池连接排污管网",2.7,2.6,0.1]
[424,"遂城","大岭","昌梓","昌梓村（风水塘北）农村公厕升级改造","新建两格化粪池（原只有一格），重做8个厕盘，隔墙加高至1.5米，加装8个厕门，装洗手盆，化粪池连接排污管网",2.7,2.6,0.1]
[425,"遂城","大岭","昌梓","昌梓村（石狗公处）农村公厕升级改造","新建两格化粪池（原只有一格），重做8个厕盘，隔墙加高至1.5米，加装8个厕门，装洗手盆，化粪池连接排污管网",2.6,2.5,0.1]
[426,"乌塘镇","周龙村委会","周龙村","乌塘镇周龙村公厕升级改造项目","建设蹲位的隔板达到1.5米高、安装独立门、改造厕内整体环境",4.6,4.6]
[427,"乌塘镇","乌塘圩村委会","乌塘圩村","乌塘镇乌塘圩村公厕升级改造项目","修缮墙体、抽粪口，改善厕内整体环境",2.2,2.2]
[428,"乌塘镇","梁村村委会","梁村村","乌塘镇梁村村公厕升级改造项目","修缮抽粪口、改善厕内整体环境",2,2]
[429,"乌塘镇","边草塘村委会","边草塘村","乌塘镇边草塘村公厕升级改造项目","修缮墙体、抽粪口，改善厕内整体环境",2.2,2.2]
[430,"乌塘镇","边草塘村委会","芳流墩村","乌塘镇芳流墩村公厕升级改造项目","修缮抽粪口、改善厕内整体环境",2,2]
[431,"乌塘镇","安贡村委会","安贡村","乌塘镇安贡村公厕升级改造项目","修缮抽粪口、改善厕内整体环境",2,2]
[432,"乌塘镇","安贡村委会","曲枙村","乌塘镇曲枙村公厕升级改造项目","修缮抽粪口、改善厕内整体环境",2,2]
[433,"乌塘镇","白水塘村委会","白水塘村","乌塘镇白水塘村公厕升级改造项目","修缮抽粪口、改善厕内整体环境",2,2]
[434,"乌塘镇","米塘村委会","米塘村","乌塘镇米塘村公厕升级改造项目","修缮抽粪口、改善厕内整体环境",2,2]
[435,"乌塘镇","米塘村委会","周屋村","乌塘镇周屋村公厕升级改造项目","修缮抽粪口、改善厕内整体环境",2,2]
[436,"乌塘镇","庞村村委会","庞村村","乌塘镇庞村村公厕升级改造项目","修缮抽粪口、改善厕内整体环境",2,2]
[437,"杨柑","西基","老虎塘","老虎塘村老旧农村公厕升级改造","改建排沟、三级池板，粉饰墙面，加装厕所隔板和门",3,3,0]
[438,"杨柑","西基","西基","西基村老旧农村公厕升级改造","改建排沟、三级池板，粉饰墙面，加装厕所隔板和门",2,2,0]
[439,"杨柑","西基","仁里","仁里村老旧农村公厕升级改造","改建排沟、三级池板，粉饰墙面，加装厕所隔板和门",2,2,0]
[440,"杨柑","布政","青水","青水村老旧农村公厕升级改造","改建排沟、三级池板，粉饰墙面，加装厕所隔板和门",2,2,0]
[441,"杨柑","布政","东埇","东埇村老旧农村公厕升级改造","改建排沟、三级池板，粉饰墙面，加装厕所隔板和门",2,2,0]
[442,"杨柑","老河","老河","老河村老旧农村公厕升级改造","改建排沟、三级池板，粉饰墙面，加装厕所隔板和门",2,2,0]
[443,"杨柑","老河","姓吴","姓吴村老旧农村公厕升级改造","改建排沟、三级池板，粉饰墙面，加装厕所隔板和门",2,2,0]
[444,"杨柑","老河","姓刘","姓刘村老旧农村公厕升级改造","改建排沟、三级池板，粉饰墙面，加装厕所隔板和门",2,2,0]
[445,"杨柑","老河","姓黄","姓黄村老旧农村公厕升级改造","新建厕所20平方",3,3,0]
[446,"杨柑","老河","姓李","姓李村老旧农村公厕升级改造","改建排沟、三级池板，粉饰墙面，加装厕所隔板和门",2,2,0]
[447,"杨柑","姓陈","姓陈","姓陈村老旧农村公厕升级改造","改建排沟、三级池板，粉饰墙面，加装厕所隔板和门",2,2,0]
[448,"杨柑","姓陈","麦二","麦二村老旧农村公厕升级改造","改建排沟、三级池板，粉饰墙面，加装厕所隔板和门",2,2,0]
[449,"杨柑","新埠","斑鸠寮","斑鸠寮村老旧农村公厕升级改造","改建排沟、三级池板，粉饰墙面，加装厕所隔板和门",2,2,0]
[450,"杨柑","新埠","欧家寮","欧家寮村老旧农村公厕升级改造","改建排沟、三级池板，粉饰墙面，加装厕所隔板和门",2,2,0]
[451,"杨柑","新埠","欧家寮","欧家寮村老旧农村公厕升级改造（二）","改建排沟、三级池板，粉饰墙面，加装厕所隔板和门",2,2,0]
[452,"杨柑","新埠","茅塘南","茅塘南村老旧农村公厕升级改造","改建排沟、三级池板，粉饰墙面，加装厕所隔板和门",2,2,0]
[453,"杨柑","新埠","茅塘中","茅塘中村老旧农村公厕升级改造","改建排沟、三级池板，粉饰墙面，加装厕所隔板和门",2,2,0]
[454,"杨柑","新埠","糖寮","糖寮村老旧农村公厕升级改造","改建排沟、三级池板，粉饰墙面，加装厕所隔板和门",2,2,0]
[455,"杨柑","新埠","永安","永安村老旧农村公厕升级改造","改建排沟、三级池板，粉饰墙面，加装厕所隔板和门",2,2,0]
[456,"杨柑","新埠","后营","后营村老旧农村公厕升级改造","改建排沟、三级池板，粉饰墙面，加装厕所隔板和门",2,2,0]
[457,"杨柑","老陆","鸡南","鸡南村老旧农村公厕升级改造","改建排沟、三级池板，粉饰墙面，加装厕所隔板和门",2,2,0]
[458,"杨柑","新有","九有仔","九有仔村老旧农村公厕升级改造","改建排沟、三级池板，粉饰墙面，加装厕所隔板和门",2,2,0]
[459,"杨柑","马城","打死马","打死马村老旧农村公厕升级改造","改建排沟、三级池板，粉饰墙面，加装厕所隔板和门",2,2,0]
[460,"杨柑","银河","河图仔","河图仔村老旧农村公厕升级改造","改建排沟、三级池板，粉饰墙面，加装厕所隔板和门",3,3,0]
[461,"杨柑","迈草","松树园","松树园村老旧农村公厕升级改造","改建排沟、三级池板，粉饰墙面，加装厕所隔板和门",2,2,0]
[462,"杨柑","尾墩","乾留尾","乾留尾村老旧农村公厕升级改造","改建排沟、三级池板，粉饰墙面，加装厕所隔板和门",2,2,0]
[463,"洋青镇","城榄","东塘村","东塘村农村公厕升级改造","新建三格化粪池20立方米",{"$f":"H466+I466+J466","v":2},2,0]
[464,"洋青镇","水流","饭锅塘村","饭锅塘村农村公厕升级改造","新建三格化粪池30立方米",3,2,1]
[465,"洋青镇","司马","司马村","司马村农村公厕升级改造","新建三格化粪池18立方米",2,2,0]
[466,"洋青镇","姓谢","符屋村","符屋村农村公厕升级改造","新建三格化粪池25立方米",2,2,0]
[467,"洋青镇","姓谢","姓谢村","姓谢村农村公厕升级改造","新建三格化粪池25立方米",2,2,0]
[468,"洋青镇","姓谢","深沟南村","深沟南村农村公厕升级改造","新建三格化粪池25立方米",2,2,0]
[469,"洋青镇","姓谢","牛栏塘村","牛栏塘村农村公厕升级改造","新建三格化粪池25立方米",2,2,0]
[470,"洋青镇","芝兰","老深村","老深村村农村公厕升级改造","新建三格化粪池8立方米",2,2,0]
[471,"洋青镇","芝兰","芝兰村","芝兰村村农村公厕升级改造","新建三格化粪池8立方米",2,2,0]
[472,"洋青镇","芝兰","园塘仔村","园塘仔村农村公厕升级改造","新建三格化粪池10立方米",2,2,0]
[473,"洋青镇","俩塘","分界仔村","分界仔村农村公厕升级改造","新建三格化粪池35立方米",3,2,1]
[474,"洋青镇","俩塘","南山塘村","南山塘村农村公厕升级改造","新建三格化粪池12立方米",3,2,1]
[475,"洋青镇","俩塘","百桔村","百桔村农村公厕升级改造","新建三格化粪池16立方米",3,2,1]
[476,"洋青镇","俩塘","百桔村","百桔村农村公厕升级改造","新建三格化粪池20立方米",3,2,1]
[477,"洋青镇","俩塘","俩塘村","俩塘村农村公厕升级改造","新建三格化粪池25立方米",2,2,0]
[478,"洋青镇","俩塘","垭塘村","碰塘村农村公厕升级改造","新建三格化粪池25立方米",2,2,0]
[479,"洋青镇","俩塘","分界村","分界村农村公厕升级改造","新建三格化粪池25立方米",2,2,0]
[480,"洋青镇","车路头","车一村","车一村农村公厕升级改造","新建三格化粪池24立方米",3.5,2,1.5]
[481,"洋青镇","车路头","车五村","车五村农村公厕升级改造","新建三格化粪池18立方米",3.5,2,1.5]
[482,"洋青镇","西埇","火灰塘村","火灰塘村农村公厕升级改造","新建三格化粪池25立方米",2,2,0]
[483,"洋青镇","西埇","大塘口村","大塘口村农村公厕升级改造","新建三格化粪池25立方米",2,2,0]
[484,"洋青镇","外坡","外坡北村","外坡北村农村公厕升级改造","新建三格化粪池25立方米",2.4,2,0.4]
[485,"洋青镇","陈屋","赤界仔村","赤界仔村农村公厕升级改造","新建三格化粪池20立方米",3,2,1]
[486,"洋青镇","沈村","沈村仔村","沈村仔村农村公厕升级改造","新建三格化粪池15立方米",2,2,0]
[487,"洋青镇","老麦田","老麦田村","老麦田村农村公厕升级改造","新建三格化粪池25立方米",2,2,0]
[488,"洋青镇","其连","新坛村","新坛村农村公厕升级改造","新建三格化粪池25立方米",2.6,2,0.6]
[489,"洋青镇","田头湾","田头湾村","田头湾村农村公厕升级改造","新建三格化粪池25立方米",3,3,0]

{"sheet":"Sheet2","index":1,"n_rows":0,"n_cols":0,"rows_kept":0}

{"sheet":"Sheet3","index":2,"n_rows":0,"n_cols":0,"rows_kept":0}